fUSD/lending_fUSD_20250811
["ID","MTS","AMOUNT","RATE_DAILY","PERIOD"]
[378510067,1754890239731,-500.0,0.00015973,2]
[378510069,1754890239742,-179.86,0.00015978,2]
[378510071,1754890239752,-666.0,0.00015999,2]
[378510074,1754890239761,-62278.29414705,0.00016,2]
[378510076,1754890239770,-500.0,0.00016026,2]
[378510079,1754890239780,-179.86,0.00016031,2]
[378510081,1754890239788,-701.68635427,0.00016068,2]
[378510082,1754890239799,-184520.1296368,0.00016069,2]
[378510084,1754890239808,-500.0,0.00016081,2]
[378510086,1754890239817,-179.86,0.00016084,2]
[378510088,1754890239827,-367.35,0.00016088,2]
[378510090,1754890239836,-1613.8,0.000161,2]
[378510091,1754890239845,-500.0,0.00016136,2]
[378510092,1754890239854,-781.7476754,0.00016182,2]
[378510093,1754890239868,-500.0,0.0001619,2]
[378510094,1754890239883,-500.0,0.0001619,2]
[378510095,1754890239893,-500.0,0.0001619,2]
[378510096,1754890239902,-500.0,0.0001619,2]
[378510097,1754890239912,-500.0,0.0001619,2]
[378510098,1754890239922,-500.0,0.0001619,2]
[378510099,1754890239931,-500.0,0.0001619,2]
[378510100,1754890239941,-500.0,0.0001619,2]
[378510101,1754890239950,-1258.0,0.0001619,2]
[378510102,1754890239960,-500.0,0.00016191,2]
[378510103,1754890239969,-356.9984261,0.00016222,2]
[378510104,1754890239982,-199.41,0.00016229,2]
[378510105,1754890239992,-600.0,0.00016229,2]
[378510106,1754890240002,-600.0,0.00016229,2]
[378510107,1754890240011,-600.0,0.00016229,2]
[378510108,1754890240020,-571.27,0.00016229,2]
[378510109,1754890240030,-500.0,0.00016246,2]
[378510110,1754890240042,-1100.66195042,0.0001626,2]
[378510111,1754890240052,-370.59138028,0.0001626,2]
[378510112,1754890240061,-342.81,0.000163,2]
[378510114,1754890240071,-2341.94,0.000163,2]
[378510115,1754890240080,-994.34,0.000163,2]
[378510117,1754890240090,-359.78,0.000163,2]
[378510119,1754890240099,-151.59,0.000163,2]
[378510121,1754890240108,-152.09,0.000163,2]
[378510123,1754890240118,-150.44,0.000163,2]
[378510125,1754890240128,-150.88,0.000163,2]
[378510127,1754890240137,-500.0,0.00016301,2]
[378510129,1754890240146,-209.57,0.00016359,2]
[378510131,1754890240156,-400.0,0.00016438,2]
[378510133,1754890240165,-547.43691992,0.00016438,2]
[378510135,1754890240175,-400.0,0.00016438,2]
[378510137,1754890240185,-228.59521261,0.00016438,2]
[378510139,1754890240194,-402.56005387,0.00016438,2]
[378510141,1754890240205,-400.0,0.00016438,2]
[378510143,1754890240215,-400.9451461,0.00016438,2]
[378510145,1754890240224,-406.20227035,0.00016438,2]
[378510147,1754890240233,-404.92737584,0.00016438,2]
[378510149,1754890240243,-204.52484931,0.00016438,2]
[378510151,1754890240252,-401.59015965,0.00016438,2]
[378510153,1754890240262,-402.07837095,0.00016438,2]
[378510155,1754890240271,-1008.99,0.00016438,2]
[378510157,1754890240281,-150.0,0.00016438,2]
[378510159,1754890240291,-150.0,0.00016438,2]
[378510161,1754890240300,-500.0,0.00016438,2]
[378510163,1754890240310,-151.0,0.00016464,2]
[378510165,1754890240319,-500.0,0.00016464,2]
[378510167,1754890240329,-500.0,0.00016464,2]
[378510169,1754890240338,-500.0,0.00016464,2]
[378510171,1754890240350,-261.31621609,0.00016464,2]
[378510173,1754890240359,-500.0,0.00016464,2]
[378510175,1754890240369,-500.0,0.00016464,2]
[378510177,1754890240378,-500.0,0.00016464,2]
[378510179,1754890240388,-500.0,0.00016464,2]
[378510182,1754890240398,-1258.0,0.00016464,2]
[378510184,1754890240407,-500.0,0.00016521,2]
[378510186,1754890240417,-1000.0,0.00016521,2]
[378510188,1754890240426,-501.52674014,0.00016521,2]
[378510190,1754890240435,-1000.0,0.00016521,2]
[378510192,1754890240444,-1000.0,0.00016521,2]
[378510194,1754890240453,-506.62875625,0.00016521,2]
[378510196,1754890240462,-502.11215971,0.00016521,2]
[378510198,1754890240472,-943.87904587,0.00016521,2]
[378510200,1754890240481,-1002.01200657,0.00016521,2]
[378510202,1754890240491,-1000.0,0.00016521,2]
[378510204,1754890240499,-1000.0,0.00016521,2]
[378510206,1754890240509,-1000.0,0.00016521,2]
[378510208,1754890240519,-1000.0,0.00016521,2]
[378510210,1754890240528,-1000.0,0.00016521,2]
[378510211,1754890240537,-509.6072783,0.00016521,2]
[378510214,1754890240546,-1000.0,0.00016521,2]
[378510216,1754890240557,-607.19365335,0.00016521,2]
[378510218,1754890240566,-1000.0,0.00016521,2]
[378510220,1754890240575,-1000.0,0.00016521,2]
[378510222,1754890240585,-1000.0,0.00016521,2]
[378510224,1754890240594,-1000.0,0.00016521,2]
[378510226,1754890240603,-1000.0,0.00016521,2]
[378510228,1754890240612,-1000.0,0.00016521,2]
[378510230,1754890240622,-1000.0,0.00016521,2]
[378510232,1754890240631,-501.31311314,0.00016521,2]
[378510234,1754890240641,-986.60648538,0.00016521,2]
[378510236,1754890240650,-647.17581921,0.00016521,2]
[378510238,1754890240662,-1000.0,0.00016521,2]
[378510240,1754890240671,-169.48,0.00016594,2]
[378510242,1754890240680,-352.32569724,0.000166,2]
[378510244,1754890240690,-737.96,0.0001664,2]
[378510246,1754890240699,-367.35,0.0001667,2]
[378510248,1754890240708,-258.02831829,0.00016711,2]
[378510250,1754890240718,-150.0,0.00016712,2]
[378510252,1754890240727,-500.0,0.00016712,2]
[378510254,1754890240739,-524.6567769,0.00016712,2]
[378510256,1754890240748,-400.0,0.00016712,2]
[378510258,1754890240759,-407.79845289,0.00016712,2]
[378510260,1754890240768,-1008.99,0.00016712,2]
[378510262,1754890240777,-500.0,0.00016738,2]
[378510264,1754890240787,-309.92812656,0.00016738,2]
[378510266,1754890240796,-500.0,0.00016738,2]
[378510268,1754890240805,-500.0,0.00016738,2]
[378510270,1754890240815,-500.0,0.00016738,2]
[378510272,1754890240824,-500.0,0.00016738,2]
[378510274,1754890240835,-500.0,0.00016738,2]
[378510276,1754890240844,-1258.0,0.00016738,2]
[378510278,1754890240853,-300.0,0.0001675,2]
[378510280,1754890240863,-250.0,0.0001675,2]
[378510282,1754890240872,-2500.0,0.0001675,2]
[378510284,1754890240881,-1000.0,0.0001675,5]
[378510286,1754890240891,-457.87080987,0.0001683,3]
[378510288,1754890240900,-151.0,0.00016839,2]
[378510290,1754890240909,-231.28369723,0.00016839,2]
[378510292,1754890240919,-183.23821515,0.00016839,2]
[378510294,1754890240928,-500.0,0.00016839,2]
[378510296,1754890240937,-500.0,0.00016839,2]
[378510298,1754890240947,-600.0,0.00016839,2]
[378510300,1754890240956,-500.0,0.00016839,2]
[378510302,1754890240965,-500.0,0.00016839,2]
[378510304,1754890240974,-500.0,0.00016839,2]
[378510306,1754890240983,-500.0,0.00016839,2]
[378510308,1754890240992,-500.0,0.00016839,2]
[378510310,1754890241001,-417.95351277,0.00016839,2]
[378510312,1754890241010,-329.83121058,0.00016839,2]
[378510314,1754890241019,-500.0,0.00016839,2]
[378510316,1754890241029,-500.0,0.00016839,2]
[378510318,1754890241038,-500.0,0.00016839,2]
[378510320,1754890241048,-500.0,0.00016839,2]
[378510322,1754890241057,-500.0,0.00016839,2]
[378510324,1754890241067,-500.0,0.00016839,2]
[378510326,1754890241076,-160.0,0.00016839,2]
[378510328,1754890241093,-500.0,0.00016839,2]
[378510330,1754890241113,-500.0,0.00016839,2]
[378510332,1754890241122,-500.0,0.00016839,2]
[378510334,1754890241132,-500.0,0.00016839,2]
[378510336,1754890241141,-174.61919141,0.00016839,2]
[378510338,1754890241151,-250.0,0.00016839,2]
[378510340,1754890241160,-250.0,0.00016839,2]
[378510342,1754890241170,-250.0,0.00016839,2]
[378510344,1754890241179,-250.0,0.00016839,2]
[378510346,1754890241188,-250.0,0.00016839,2]
[378510348,1754890241198,-524.86800719,0.00016839,2]
[378510350,1754890241207,-250.0,0.00016839,2]
[378510352,1754890241218,-207.50059592,0.00016839,2]
[378510354,1754890241227,-315.18853138,0.00016839,2]
[378510356,1754890241237,-346.92554585,0.00016839,2]
[378510358,1754890241246,-151.0,0.00016839,2]
[378510360,1754890241255,-2183.31810187,0.00016839,2]
[378510362,1754890241264,-250.0,0.00016839,2]
[378510364,1754890241274,-250.0,0.00016839,2]
[378510366,1754890241283,-250.0,0.00016839,2]
[378510368,1754890241292,-250.0,0.00016839,2]
[378510370,1754890241300,-215.70161963,0.00016839,2]
[378510372,1754890241309,-1560.87,0.00016849,2]
[378510374,1754890241319,-36326.78191568,0.00016854,2]
[378510376,1754890241329,-211.0,0.00016885,2]
[378510378,1754890241338,-2264.10087164,0.00016894,2]
[378510380,1754890241347,-1003.0,0.000169,2]
[378510382,1754890241356,-300.0,0.00016909,2]
[378510384,1754890241365,-300.0,0.00016909,2]
[378510386,1754890241375,-300.0,0.00016909,2]
[378510388,1754890241384,-300.0,0.00016909,2]
[378510390,1754890241394,-184520.1296368,0.0001691,2]
[378510392,1754890241403,-151.0,0.0001692,2]
[378510394,1754890241412,-151.0,0.00016928,2]
[378510396,1754890241421,-2347.87260389,0.00016949,2]
[378510398,1754890241431,-151.0,0.00016959,2]
[378510400,1754890241440,-1786.52151193,0.0001697,2]
[378510402,1754890241449,-545.71182065,0.00016973,2]
[378510404,1754890241458,-500.0,0.00016973,2]
[378510406,1754890241468,-500.0,0.00016973,2]
[378510408,1754890241478,-576.59179543,0.00016973,2]
[378510410,1754890241487,-500.0,0.00016973,2]
[378510412,1754890241497,-160.24718503,0.00016973,2]
[378510414,1754890241506,-500.22252914,0.00016973,2]
[378510416,1754890241515,-500.0,0.00016973,2]
[378510418,1754890241524,-500.0,0.00016973,2]
[378510420,1754890241533,-500.0,0.00016973,2]
[378510422,1754890241543,-500.0,0.00016973,2]
[378510424,1754890241552,-500.0,0.00016973,2]
[378510426,1754890241562,-500.0,0.00016973,2]
[378510428,1754890241571,-500.61272097,0.00016973,2]
[378510430,1754890241580,-500.0,0.00016973,2]
[378510432,1754890241589,-500.0,0.00016973,2]
[378510434,1754890241599,-500.0,0.00016973,2]
[378510436,1754890241608,-500.0,0.00016973,2]
[378510438,1754890241617,-500.0,0.00016973,2]
[378510440,1754890241627,-500.0,0.00016973,2]
[378510442,1754890241636,-500.0,0.00016973,2]
[378510444,1754890241646,-500.0,0.00016973,2]
[378510445,1754890241655,-500.0,0.00016973,2]
[378510447,1754890241667,-500.0,0.00016973,2]
[378510449,1754890241676,-500.59583664,0.00016973,2]
[378510451,1754890241686,-501.35361219,0.00016973,2]
[378510453,1754890241695,-501.2657223,0.00016973,2]
[378510455,1754890241705,-503.15014373,0.00016973,2]
[378510457,1754890241715,-520.30856992,0.00016973,2]
[378510459,1754890241724,-501.20075947,0.00016973,2]
[378510461,1754890241734,-503.72508156,0.00016973,2]
[378510463,1754890241743,-500.0,0.00016973,2]
[378510465,1754890241753,-500.0,0.00016973,2]
[378510467,1754890241763,-164.69197131,0.00016973,2]
[378510469,1754890241772,-500.0,0.00016973,2]
[378510472,1754890241782,-502.25756683,0.00016973,2]
[378510474,1754890241791,-502.79054434,0.00016973,2]
[378510475,1754890241800,-150.0,0.00016986,2]
[378510477,1754890241809,-500.0,0.00016986,2]
[378510480,1754890241820,-500.0,0.00016986,2]
[378510482,1754890241829,-409.1967707,0.00016986,2]
[378510484,1754890241838,-1008.99,0.00016986,2]
[378510486,1754890241848,-300.0,0.00016999,2]
[378510488,1754890241857,-307.08986628,0.00016999,2]
[378510490,1754890241866,-68187.34868474,0.00017,2]
[378510492,1754890241876,-14290857.84245039,0.00017,2]
[378510494,1754890241885,-300.0,0.00017,2]
[378510496,1754890241894,-2434.74389024,0.00017004,2]
[378510498,1754890241904,-9358.38535966,0.00017005,2]
[378510500,1754890241914,-151.0,0.00017012,2]
[378510502,1754890241927,-500.0,0.00017012,2]
[378510504,1754890241937,-500.0,0.00017012,2]
[378510506,1754890241946,-500.0,0.00017012,2]
[378510508,1754890241955,-500.0,0.00017012,2]
[378510510,1754890241965,-500.0,0.00017012,2]
[378510512,1754890241974,-500.0,0.00017012,2]
[378510514,1754890241984,-1258.0,0.00017012,2]
[378510516,1754890241993,-510.0,0.00017016,2]
[378510518,1754890242002,-150.0,0.00017029,2]
[378510520,1754890242012,-150.0,0.00017029,2]
[378510522,1754890242021,-150.0,0.00017029,2]
[378510524,1754890242030,-150.0,0.00017029,2]
[378510526,1754890242040,-201.27594546,0.00017029,2]
[378510528,1754890242049,-212.98811136,0.0001704,2]
[378510530,1754890242058,-500.0,0.00017056,2]
[378510532,1754890242067,-2524.82941417,0.00017059,2]
[378510534,1754890242077,-1000.0,0.00017066,2]
[378510536,1754890242086,-1500.0,0.00017068,2]
[378510538,1754890242095,-504.29631946,0.00017068,2]
[378510540,1754890242104,-1000.0,0.00017068,2]
[378510542,1754890242113,-298.5893574,0.00017068,2]
[378510544,1754890242122,-502.52277984,0.00017068,2]
[378510546,1754890242131,-1500.0,0.00017068,2]
[378510548,1754890242140,-1259.57596439,0.00017068,2]
[378510550,1754890242151,-1500.0,0.00017068,2]
[378510552,1754890242160,-405.8711316,0.00017068,2]
[378510554,1754890242170,-504.48052608,0.00017068,2]
[378510556,1754890242179,-773.29065405,0.00017068,2]
[378510558,1754890242189,-1500.0,0.00017068,2]
[378510560,1754890242199,-1000.0,0.00017068,2]
[378510562,1754890242208,-1500.0,0.00017068,2]
[378510564,1754890242217,-1500.0,0.00017068,2]
[378510566,1754890242226,-500.0,0.00017068,2]
[378510568,1754890242236,-503.03723788,0.00017068,2]
[378510570,1754890242245,-253.0,0.0001707,2]
[378510572,1754890242255,-1000.0,0.00017079,2]
[378510574,1754890242264,-300.0,0.00017082,2]
[378510576,1754890242273,-250.0,0.00017082,2]
[378510578,1754890242282,-500.0,0.0001709,2]
[378510580,1754890242292,-2618.2481025,0.00017114,2]
[378510582,1754890242301,-2715.12328229,0.00017169,2]
[378510584,1754890242310,-2815.58284374,0.00017224,2]
[378510586,1754890242319,-2500.0,0.0001724,2]
[378510588,1754890242329,-1000.0,0.0001724,5]
[378510590,1754890242338,-367.35,0.00017251,2]
[378510592,1754890242348,-150.0,0.0001726,2]
[378510594,1754890242358,-500.0,0.0001726,2]
[378510596,1754890242367,-500.0,0.0001726,2]
[378510598,1754890242376,-1008.99,0.0001726,2]
[378510600,1754890242385,-2919.75940895,0.00017279,2]
[378510602,1754890242395,-1243.57659104,0.00017285,2]
[378510604,1754890242404,-356.4700061,0.00017286,2]
[378510606,1754890242413,-325.77793227,0.00017286,2]
[378510608,1754890242423,-500.0,0.00017286,2]
[378510610,1754890242431,-500.0,0.00017286,2]
[378510612,1754890242440,-500.0,0.00017286,2]
[378510614,1754890242450,-500.0,0.00017286,2]
[378510616,1754890242459,-1258.0,0.00017286,2]
[378510618,1754890242469,-600.0,0.00017303,2]
[378510620,1754890242477,-600.0,0.00017303,2]
[378510622,1754890242488,-600.0,0.00017303,2]
[378510624,1754890242497,-571.27,0.00017303,2]
[378510626,1754890242506,-420.0,0.00017308,2]
[378510627,1754890242515,-420.0,0.00017308,2]
[378510630,1754890242524,-199.41,0.00017308,2]
[378510631,1754890242533,-616.0,0.0001731,2]
[378510634,1754890242543,-3027.79050709,0.00017334,2]
[378510635,1754890242552,-600.0,0.00017387,2]
[378510638,1754890242562,-151.0,0.00017387,2]
[378510640,1754890242571,-3139.81875585,0.00017389,2]
[378510641,1754890242580,-1680.0,0.00017393,2]
[378510643,1754890242590,-737.96,0.00017397,2]
[378510646,1754890242600,-300.0,0.00017398,2]
[378510648,1754890242609,-300.0,0.00017402,2]
[378510650,1754890242618,-250.0,0.00017402,2]
[378510652,1754890242628,-2500.0,0.00017402,2]
[378510653,1754890242637,-1000.0,0.00017402,5]
[378510655,1754890242647,-222.873055,0.00017442,2]
[378510658,1754890242657,-222.873055,0.00017442,2]
[378510660,1754890242668,-293.965612,0.00017442,2]
[378510661,1754890242677,-293.965612,0.00017442,2]
[378510663,1754890242687,-151.0,0.00017442,2]
[378510667,1754890242696,-199.919864,0.00017442,2]
[378510668,1754890242706,-199.919864,0.00017442,2]
[378510670,1754890242715,-151.0,0.00017442,2]
[378510672,1754890242725,-151.0,0.00017442,2]
[378510674,1754890242736,-151.0,0.00017442,2]
[378510677,1754890242745,-3255.99204981,0.00017444,2]
[378510679,1754890242755,-1000.0,0.00017499,2]
[378510680,1754890242764,-960.33706418,0.00017499,2]
[378510682,1754890242774,-151.0,0.00017519,2]
[378510684,1754890242783,-1000.0,0.00017521,2]
[378510687,1754890242793,-1000.0,0.00017521,2]
[378510688,1754890242802,-639.16169409,0.00017521,2]
[378510691,1754890242811,-1000.0,0.00017521,2]
[378510694,1754890242821,-707.21940402,0.00017521,2]
[378510696,1754890242830,-1000.0,0.00017521,2]
[378510698,1754890242839,-258.99521982,0.00017521,2]
[378510701,1754890242848,-1000.0,0.00017521,2]
[378510704,1754890242857,-1000.0,0.00017521,2]
[378510707,1754890242867,-500.94936456,0.00017521,2]
[378510709,1754890242876,-581.41279628,0.00017521,2]
[378510711,1754890242885,-500.40590492,0.00017521,2]
[378510714,1754890242894,-513.87382947,0.00017521,2]
[378510716,1754890242904,-530.09559838,0.00017521,2]
[378510718,1754890242914,-1000.0,0.00017521,2]
[378510720,1754890242925,-1000.0,0.00017521,2]
[378510722,1754890242934,-1000.0,0.00017521,2]
[378510724,1754890242943,-1000.0,0.00017521,2]
[378510726,1754890242952,-501.01111572,0.00017521,2]
[378510728,1754890242962,-501.64333405,0.00017521,2]
[378510730,1754890242971,-1000.0,0.00017521,2]
[378510732,1754890242981,-1000.0,0.00017521,2]
[378510734,1754890242990,-307.20797227,0.00017533,2]
[378510736,1754890243000,-300.0,0.00017533,2]
[378510738,1754890243010,-300.0,0.00017533,2]
[378510740,1754890243020,-173.67624752,0.00017534,2]
[378510742,1754890243029,-500.0,0.00017534,2]
[378510744,1754890243038,-151.0,0.00017534,2]
[378510746,1754890243048,-151.0,0.00017534,2]
[378510748,1754890243056,-261.044515,0.00017534,2]
[378510750,1754890243067,-261.044515,0.00017534,2]
[378510752,1754890243076,-151.0,0.00017534,2]
[378510754,1754890243086,-151.0,0.00017534,2]
[378510756,1754890243095,-763.169563,0.00017534,2]
[378510758,1754890243105,-151.0,0.00017534,2]
[378510760,1754890243115,-763.169563,0.00017534,2]
[378510762,1754890243124,-151.0,0.00017534,2]
[378510764,1754890243133,-574.407,0.00017534,2]
[378510766,1754890243143,-574.407,0.00017534,2]
[378510768,1754890243152,-1008.99,0.00017534,2]
[378510770,1754890243163,-2643.368854,0.00017534,2]
[378510772,1754890243172,-2643.368854,0.00017534,2]
[378510774,1754890243182,-163.095418,0.00017534,2]
[378510776,1754890243191,-151.0,0.00017534,2]
[378510778,1754890243201,-163.095418,0.00017534,2]
[378510780,1754890243210,-953.800763,0.00017534,2]
[378510782,1754890243220,-953.800763,0.00017534,2]
[378510784,1754890243229,-1074.407428,0.00017534,2]
[378510786,1754890243240,-1074.407428,0.00017534,2]
[378510788,1754890243249,-151.0,0.00017534,2]
[378510790,1754890243258,-155.015847,0.00017534,2]
[378510792,1754890243268,-10000.0,0.00017534,2]
[378510794,1754890243277,-10000.0,0.00017534,2]
[378510796,1754890243287,-10000.0,0.00017534,2]
[378510798,1754890243303,-216.042072,0.00017534,2]
[378510800,1754890243314,-216.042072,0.00017534,2]
[378510802,1754890243324,-1804.603059,0.00017534,2]
[378510804,1754890243333,-1804.603059,0.00017534,2]
[378510806,1754890243342,-727.572305,0.00017534,2]
[378510807,1754890243351,-237.164555,0.00017534,2]
[378510808,1754890243361,-727.572305,0.00017534,2]
[378510809,1754890243370,-237.164555,0.00017534,2]
[378510810,1754890243380,-151.0,0.00017534,2]
[378510811,1754890243389,-340.943643,0.00017534,2]
[378510812,1754890243398,-204.09109,0.00017534,2]
[378510813,1754890243407,-340.943643,0.00017534,2]
[378510814,1754890243417,-204.09109,0.00017534,2]
[378510815,1754890243426,-4039.536178,0.00017534,2]
[378510816,1754890243435,-4039.536178,0.00017534,2]
[378510817,1754890243445,-197.270912,0.00017534,2]
[378510818,1754890243454,-197.270912,0.00017534,2]
[378510819,1754890243463,-1200.323483,0.00017534,2]
[378510820,1754890243475,-151.0,0.00017534,2]
[378510847,1754890243658,-1200.323483,0.00017534,2]
[378510849,1754890243671,-151.0,0.00017534,2]
[378510851,1754890243680,-250.173049,0.00017534,2]
[378510852,1754890243690,-250.173049,0.00017534,2]
[378510853,1754890243699,-1574.069305,0.00017534,2]
[378510854,1754890243709,-1574.069305,0.00017534,2]
[378510855,1754890243718,-209.57,0.00017537,2]
[378510856,1754890243727,-500.0,0.0001756,2]
[378510858,1754890243738,-419.28902567,0.0001756,2]
[378510859,1754890243747,-500.0,0.0001756,2]
[378510860,1754890243756,-1258.0,0.0001756,2]
[378510861,1754890243766,-2000.0,0.00017616,2]
[378510862,1754890243777,-267.34097272,0.00017616,2]
[378510863,1754890243786,-2000.0,0.00017616,2]
[378510864,1754890243796,-1006.70352836,0.00017616,2]
[378510865,1754890243805,-2000.0,0.00017616,2]
[378510866,1754890243815,-2000.0,0.00017616,2]
[378510867,1754890243824,-151.0,0.00017714,2]
[378510868,1754890243834,-206.716727,0.00017714,2]
[378510869,1754890243844,-445.966927,0.00017716,2]
[378510871,1754890243853,-445.966927,0.00017716,2]
[378510872,1754890243863,-151.0,0.00017716,2]
[378510873,1754890243873,-296.068264,0.00017716,2]
[378510874,1754890243884,-296.068264,0.00017716,2]
[378510875,1754890243894,-151.0,0.00017716,2]
[378510876,1754890243905,-194.003862,0.00017716,2]
[378510877,1754890243914,-194.003862,0.00017716,2]
[378510878,1754890243924,-198.315148,0.00017716,2]
[378510879,1754890243934,-198.315148,0.00017716,2]
[378510881,1754890243944,-1731.537162,0.00017716,2]
[378510882,1754890243954,-1731.537162,0.00017716,2]
[378510883,1754890243963,-151.0,0.00017716,2]
[378510884,1754890243973,-151.0,0.00017716,2]
[378510885,1754890243983,-151.0,0.00017716,2]
[378510886,1754890243995,-195.474766,0.00017716,2]
[378510888,1754890244005,-195.474766,0.00017716,2]
[378510889,1754890244014,-151.0,0.00017717,2]
[378510890,1754890244024,-151.0,0.00017717,2]
[378510891,1754890244033,-151.0,0.00017717,2]
[378510892,1754890244042,-151.0,0.00017717,2]
[378510893,1754890244051,-151.0,0.00017717,2]
[378510894,1754890244061,-151.0,0.00017717,2]
[378510896,1754890244070,-151.0,0.00017717,2]
[378510897,1754890244081,-151.0,0.00017717,2]
[378510898,1754890244090,-151.0,0.00017717,2]
[378510899,1754890244100,-241.817696,0.00017717,2]
[378510900,1754890244109,-401.379728,0.00017717,2]
[378510901,1754890244118,-401.379728,0.00017717,2]
[378510903,1754890244128,-151.0,0.00017717,2]
[378510904,1754890244138,-151.0,0.00017717,2]
[378510905,1754890244147,-151.0,0.00017717,2]
[378510906,1754890244157,-196.625057,0.00017717,2]
[378510907,1754890244166,-196.625057,0.00017717,2]
[378510908,1754890244175,-184520.1296368,0.0001775,2]
[378510909,1754890244185,-517.0,0.00017806,4]
[378510911,1754890244196,-500.0,0.00017808,2]
[378510912,1754890244205,-199.919864,0.00017808,2]
[378510913,1754890244215,-199.919864,0.00017808,2]
[378510914,1754890244224,-151.0,0.00017808,2]
[378510915,1754890244234,-1008.99,0.00017808,2]
[378510916,1754890244245,-169.1468356,0.00017808,2]
[378510918,1754890244254,-500.0,0.00017808,2]
[378510919,1754890244264,-222.873055,0.0001782,2]
[378510920,1754890244273,-222.873055,0.0001782,2]
[378510921,1754890244283,-151.0,0.0001782,2]
[378510922,1754890244292,-151.0,0.0001782,2]
[378510923,1754890244302,-151.0,0.0001782,2]
[378510925,1754890244311,-293.965612,0.0001782,2]
[378510926,1754890244320,-293.965612,0.0001782,2]
[378510927,1754890244329,-151.0,0.0001782,2]
[378510928,1754890244338,-151.0,0.0001782,2]
[378510929,1754890244347,-151.0,0.0001782,2]
[378510930,1754890244357,-151.0,0.0001782,2]
[378510931,1754890244366,-727.572305,0.0001782,2]
[378510932,1754890244376,-727.572305,0.0001782,2]
[378510933,1754890244385,-204.09109,0.0001782,2]
[378510934,1754890244394,-204.09109,0.0001782,2]
[378510935,1754890244403,-151.0,0.00017821,2]
[378510936,1754890244413,-367.35,0.00017833,2]
[378510937,1754890244422,-500.0,0.00017834,2]
[378510938,1754890244431,-1258.0,0.00017834,2]
[378510939,1754890244441,-179.90553086,0.00017857,2]
[378510940,1754890244450,-169.48,0.00017859,2]
[378510941,1754890244460,-1540.86176717,0.000179,2]
[378510942,1754890244470,-1540.861767,0.000179,2]
[378510943,1754890244479,-1540.861767,0.000179,2]
[378510944,1754890244488,-1540.861767,0.000179,2]
[378510945,1754890244497,-1540.861767,0.000179,2]
[378510946,1754890244507,-1540.861767,0.000179,2]
[378510947,1754890244517,-1540.861767,0.000179,2]
[378510948,1754890244526,-1540.861767,0.000179,2]
[378510949,1754890244535,-1540.861767,0.000179,2]
[378510951,1754890244545,-1540.861767,0.000179,2]
[378510952,1754890244554,-1540.861767,0.000179,2]
[378510953,1754890244563,-1540.861767,0.000179,2]
[378510954,1754890244572,-1540.861767,0.000179,2]
[378510955,1754890244582,-1540.861767,0.000179,2]
[378510956,1754890244592,-1540.861767,0.000179,2]
[378510957,1754890244601,-1540.861767,0.000179,2]
[378510958,1754890244611,-1540.861767,0.000179,2]
[378510959,1754890244620,-1540.861767,0.000179,2]
[378510960,1754890244629,-1540.861767,0.000179,2]
[378510961,1754890244639,-1540.861767,0.000179,2]
[378510962,1754890244649,-168.0,0.00017929,2]
[378510963,1754890244661,-208.0,0.00017929,2]
[378510964,1754890244676,-600.0,0.00017935,2]
[378510965,1754890244685,-151.0,0.00017935,2]
[378510966,1754890244695,-208.0,0.00017943,2]